Cogmind - Beta 15 @@@ ROGUE MODE // 2025.07.30 @ 22:56:29 Player: beans Result: Destroyed by Y-45 Defender with Heavy Assault Rifle Performance ------------- Evolutions (1) 500 Regions Visited (3) 600 Robots Destroyed (85) 425 Value Destroyed (1405) 1405 Prototype IDs (4) 80 Alien Tech Used (0) 0 Bonus (0) 0 TOTAL SCORE: 3010 Bonus ------- None Cogmind --------- Core Integrity 0/400 Matter 280/300 Energy 254/280 System Corruption 0% Temperature Cool (63) Movement Core (300) Ox5 Location -9/Mines Parts ------- > --- POWER (1) -------- Cooled Ion Engine > --- PROPULSION (2) --- (None) > --- UTILITY (3) ------ (None) > --- WEAPON (3) ------- EM Shotgun Advanced Beam Cannon Heavy Assault Rifle > --- INVENTORY (5) ---- Cesium-ion Thruster Rocket Launcher Rocket Launcher Peak State ------------ > --- POWER ------------ Light Nuclear Core > --- PROPULSION ------- Cesium-ion Thruster Cesium-ion Thruster > --- UTILITY ---------- Improved Heat Sink > --- WEAPON ----------- Improved EM Shotgun Advanced Beam Cannon Assault Rifle > --- INVENTORY -------- Cesium-ion Thruster Cesium-ion Thruster Rocket Launcher Rocket Launcher [Rating: 20] Favorites ----------- Power Cooled Ion Engine Engine Cooled Ion Engine Power Core Light Nuclear Core Propulsion Light Treads Treads Light Treads Leg Carbon-fiber Leg Flight Unit Cesium-ion Thruster Utility Improved Heat Sink Device Improved Heat Sink Storage Huge Storage Unit Weapon Assault Rifle Energy Gun Improved EM Shotgun Energy Cannon Advanced Beam Cannon Ballistic Gun Assault Rifle Build | -11 -10 -9 -9 ------- Run | Yrd Mat Mat Min Slots Evolved 2 | . . 2 . Power . | . . . . Propulsion . | . . . . Utility 1 | . . 1 . Weapon 1 | . . 1 . Parts Attached 27 | 5 1 19 2 Power 4 | 1 . 3 . Engine 3 | 1 . 2 . Core 1 | . . 1 . Reactor . | . . . . Propulsion 9 | 2 . 7 . Treads 2 | 2 . . . Leg 1 | . . 1 . Wheel . | . . . . Hover . | . . . . Flight 6 | . . 6 . Utility 2 | . 1 1 . Device 1 | . 1 . . Storage 1 | . . 1 . Processor . | . . . . Hackware . | . . . . Protection . | . . . . Artifact . | . . . . Weapon 12 | 2 . 8 2 Energy Gun 6 | . . 5 1 Energy Cannon 2 | . . 2 . Ballistic Gun 4 | 2 . 1 1 Ballistic Cannon . | . . . . Launcher . | . . . . Special Weapon . | . . . . Impact Weapon . | . . . . Slashing Weapon . | . . . . Piercing Weapon . | . . . . Special Melee Weapon . | . . . . Unidentified Prototypes 4 | . . 4 . Parts Lost 13 | . . 10 3 Power 1 | . . 1 . Propulsion 5 | . . 3 2 Utility 1 | . . 1 . Weapon 6 | . . 5 1 Highest Loss Streak 3 | . . 3 2 To Critical Strikes . | . . . . Average Backups 4 | . 2 4 5 Power . | . . . . Propulsion 1 | . . 1 1 Utility . | . . . . Weapon 2 | . . 2 4 Tool/Special . | . . . . Unused Backups 6 | 1 . 3 2 Power . | . . . . Propulsion 1 | . . 1 . Utility . | . . . . Weapon 5 | 1 . 2 2 Tool/Special . | . . . . Average Slot Usage (%) 58 | . 77 56 47 Engine 10 | . 14 10 11 Treads 8 | . 28 5 . Flight 8 | . . 9 14 Device 5 | . 6 5 . Energy Gun 7 | . . 10 . Energy Cannon 7 | . . 8 11 Ballistic Gun 10 | . 28 6 11 Peak Build Rating 20 | 5 8 20 12 Average Rating 11 | 3 6 13 10 On Entrance 6 | . 5 8 12 Naked Turns . | . . . . Heaviest Build 93 | 9 10 93 15 Greatest Support 40 | 40 40 40 8 Greatest Overweight (x) 3 | 1 . 3 3 Average Overweight (x) 1 | . . 1 2 Largest Inventory Capacity 25 | 5 5 25 5 Average Capacity 5 | 5 5 5 5 Most Carried 6 | 2 4 6 5 Average Carried 4 | . 2 4 4 Final Capacity 5 | 5 5 5 5 Final Carried 5 | . 4 5 3 Class Distribution -------------------- 64% | Mutant 33% | Gunner Dominant Class ---------------- Mutant | -10/Materials Mutant | -9/Materials Mutant | -9/Mines Resources | -11 -10 -9 -9 ----------- Run | Yrd Mat Mat Min Matter Collected 1141 | 256 358 445 82 Remotely . | . . . . Salvage Created 2625 | . 757 1718 150 Parts 181 | . 49 117 15 Haulers Intercepted 4 | . . 4 . Recyclers Shooed 6 | . 4 2 . Parts Field Recycled . | . . . . Retrieved Matter . | . . . . Parts Self-Destructed . | . . . . Prevented . | . . . . Kills | -11 -10 -9 -9 ------- Run | Yrd Mat Mat Min Combat Hostiles Destroyed 44 | . 9 27 8 Guns 24 | . 9 12 3 Cannons 18 | . . 14 4 AOE 1 | . . 1 . Classes Destroyed 10 | . 6 3 1 Worker 13 | . 2 11 . Builder 11 | . 3 8 . Tunneler 1 | . . . 1 Hauler 4 | . . 4 . Recycler 5 | . 3 2 . Operator 2 | . 1 1 . Watcher 5 | . 1 4 . Swarmer 20 | . . 12 8 Grunt 19 | . 9 10 . Sentry 5 | . . 5 . Best Kill Streak 12 | . 4 12 8 Combat Bots Only 8 | . 2 4 8 Max Kills in Single Turn 3 | . 1 3 1 Gunslinging 2 | . . 2 . Exploded 1 | . . 1 . Melee . | . . . . Uniques/NPCs Destroyed . | . . . . Combat | -11 -10 -9 -9 -------- Run | Yrd Mat Mat Min Hostile Shots Fired 243 | . 46 142 55 Missed 80 | . 23 43 14 Hits 163 | . 23 99 41 Projectile 163 | . 23 99 41 Critical Strikes 4 | . . 2 2 Damage Taken 1817 | . 261 1142 414 Core 468 | . 56 244 168 Absorbed by Shields . | . . . . Core Remaining (%) 88 | 100 77 . . Volleys Fired 220 | 2 57 140 21 Largest 3 | 2 2 3 2 Hottest 169 | 40 40 169 91 Shots Fired 413 | 4 114 253 42 Gun 289 | 4 114 150 21 Cannon 124 | . . 103 21 Launcher . | . . . . Special . | . . . . Kinetic 215 | 4 114 76 21 Thermal 131 | . . 110 21 Explosive . | . . . . Electromagnetic 67 | . . 67 . Robot Hit Streak 13 | 1 10 13 6 Robot Miss Streak 4 | 2 4 4 3 Penetration Max . | . . . . Secondary Targets 6 | . 1 5 . Max Gunslinging Chain 2 | . 1 2 . Shots Hit Robots 233 | 1 72 137 23 Core Hits 108 | . 35 66 7 Critical Kills 2 | . . 1 1 Critical Parts Destroyed 1 | . 1 . . Critical Strikes 3 | . 1 1 1 Meltdown 2 | . . 1 1 Destroy 1 | . 1 . . Melee Attacks . | . . . . Impact . | . . . . Slashing . | . . . . Piercing . | . . . . Sneak Attacks . | . . . . Combat Hostiles . | . . . . Follow-up Attacks . | . . . . Damage Inflicted 4171 | 10 935 2814 412 Guns 2318 | 10 935 1245 128 Cannons 1575 | . . 1291 284 Explosions 278 | . . 278 . Melee . | . . . . Ramming . | . . . . Kinetic 1420 | 10 935 347 128 Thermal 1905 | . . 1621 284 Explosive . | . . . . Electromagnetic 846 | . . 846 . Impact . | . . . . Slashing . | . . . . Piercing . | . . . . Highest Corruption . | . . . . Average Corruption . | . . . . Corruption Purged . | . . . . Corruption Blocked . | . . . . Overload Shots . | . . . . Overflow Damage 164 | . . 154 10 Projectiles 37 | . . 27 10 Explosions 127 | . . 127 . Melee . | . . . . Knockbacks . | . . . . Impact . | . . . . Kinetic . | . . . . Secondary . | . . . . Self-Inflicted Damage 77 | . . 77 . Shots 1 | . . 1 . Rammed . | . . . . Targets Rammed . | . . . . Kicked . | . . . . Crushed . | . . . . Highest Temperature 285 | . 2 285 163 Average Temperature 69 | . 2 70 67 Received Heat Transfer 579 | . 144 336 99 Siege Activations . | . . . . Martial Activations . | . . . . Shielding Activations . | . . . . Robots Disrupted . | . . . . Combat Hostiles . | . . . . Robots Corrupted . | . . . . Combat Hostiles . | . . . . Parts Fried 3 | . . 3 . Impact Corruptions . | . . . . Robots Melted 2 | . . 1 1 Combat Hostiles 1 | . . . 1 Parts Melted 7 | . . 5 2 Heat Transferred 3160 | . . 2642 518 Parts Sabotaged . | . . . . Parts Stolen . | . . . . Parts Stripped . | . . . . Power Chain Reactions 3 | . . 3 . Alert | -11 -10 -9 -9 ------- Run | Yrd Mat Mat Min Maximum Alert Level 1 | . . 1 1 Low Security (%) 71 | 100 100 68 42 Level 1 28 | . . 31 57 Level 2 . | . . . . Level 3 . | . . . . Level 4 . | . . . . Level 5 . | . . . . High Security . | . . . . Max Security . | . . . . Peak Influence 299 | . 83 299 275 Initial 115 | . . 31 115 Average 134 | . 32 153 188 Influence Increases 1513 | . 282 986 245 Destroy 0b10 Robot/C 880 | . 180 540 160 Destroy 0b10 Robot/NC 205 | . 50 150 5 Destroy Leader 198 | . 52 126 20 Disable Machine 105 | . . 105 . Destroy Structure 20 | . . 20 . Lose Combat Pursuer 105 | . . 45 60 Influence Decreases 1333 | . 207 764 362 Entered New Map 226 | . . 44 182 Time Decay 977 | . 207 620 150 Lost Part 130 | . . 100 30 Squads Dispatched 5 | . 3 2 . Investigation 1 | . 1 . . Extermination . | . . . . Reinforcement 4 | . 2 2 . Assault . | . . . . Garrison . | . . . . Intercept . | . . . . Searches Triggered . | . . . . Construction Impeded . | . . . . Haulers Reinforced . | . . . . Active Scanning Responses . | . . . . Cargo Convoy Interrupts . | . . . . Stealth | -11 -10 -9 -9 --------- Run | Yrd Mat Mat Min Distress Signals 4 | . 2 2 . Communications Jammed . | . . . . Distress Signals . | . . . . Times Spotted 69 | . 17 38 14 Peak Tracking Total 5 | . 3 5 4 Tactical Retreats 4 | . . 2 2 Traps | -11 -10 -9 -9 ------- Run | Yrd Mat Mat Min Traps Triggered 3 | . 1 2 . Indirectly . | . . . . Trap Hack Attempts . | . . . . Triggered . | . . . . Disarmed . | . . . . Reprogrammed . | . . . . Reused . | . . . . Traps Extracted . | . . . . Installed . | . . . . Triggered . | . . . . Machines | -11 -10 -9 -9 ---------- Run | Yrd Mat Mat Min Machines Disabled 7 | . . 7 . Max in Single Turn 3 | . . 3 . Machines Repaired . | . . . . Machines Dismantled . | . . . . Machines Sabotaged . | . . . . Overloaded Fab Kills . | . . . . Hacking | -11 -10 -9 -9 --------- Run | Yrd Mat Mat Min Machines Accessed 3 | . 1 2 . Terminals 1 | . 1 . . Fabricators . | . . . . Repair Stations . | . . . . Recycling Units . | . . . . Scanalyzers 2 | . . 2 . Garrison Access . | . . . . Total Hacks 10 | . 2 8 . Successful 6 | . 1 5 . Failed 4 | . 1 3 . Catastrophic 1 | . 1 . . Database Lockouts . | . . . . Manual . | . . . . Terminals 2 | . 2 . . Fabricators . | . . . . Repair Stations . | . . . . Recycling Units . | . . . . Scanalyzers 8 | . . 8 . Garrison Access . | . . . . Terminal Hacks 1 | . 1 . . Record 1 | . 1 . . Fabricator Hacks . | . . . . Repair Station Hacks . | . . . . Recycling Unit Hacks . | . . . . Scanalyzer 5 | . . 5 . Insert Component 2 | . . 2 . Analyze 3 | . . 3 . Garrison Access Hacks . | . . . . Unauthorized Hacks . | . . . . Terminals . | . . . . Fabricators . | . . . . Repair Stations . | . . . . Recycling Units . | . . . . Scanalyzers . | . . . . Garrison Access . | . . . . Data Cores Recovered . | . . . . Used . | . . . . Hacking Detections 1 | . . 1 . Full Trace Events . | . . . . Feedback Events . | . . . . Feedback Blocked . | . . . . Robot Schematics Acquired . | . . . . Robots Built . | . . . . Authchips . | . . . . Time . | . . . . Total Robot Build Rating . | . . . . Part Schematics Acquired 1 | . . 1 . Parts Built . | . . . . Authchips . | . . . . Time . | . . . . Total Part Build Rating . | . . . . Parts Repaired . | . . . . Time . | . . . . Parts Recycled . | . . . . Recycled Matter . | . . . . Retrieved Matter . | . . . . Retrieved Components . | . . . . Parts Scanalyzed 2 | . . 2 . Part Schematics Acquired 1 | . . 1 . Parts Damaged 1 | . . 1 . Bothacking | -11 -10 -9 -9 ------------ Run | Yrd Mat Mat Min Used RIF Installer . | . . . . Robots Hacked . | . . . . Non-combat . | . . . . Combat . | . . . . Robot Hacks Applied . | . . . . Relay Couplers Released . | . . . . Fabnet Peak Effective % . | . . . . Robots Rewired . | . . . . Allies Hacked . | . . . . Hacks Repelled . | . . . . Allies | -11 -10 -9 -9 -------- Run | Yrd Mat Mat Min Total Allies . | . . . . Largest Group . | . . . . Highest-Rated Group . | . . . . Highest-Rated Ally . | . . . . Total Orders . | . . . . Ally Attacks . | . . . . Total Damage . | . . . . Kills . | . . . . Allies Corrupted . | . . . . Allies Melted . | . . . . Intel | -11 -10 -9 -9 ------- Run | Yrd Mat Mat Min Active Infowar (turns) . | . . . . Robot Analysis Total . | . . . . Derelict Logs Recovered . | . . . . Drone Launches . | . . . . Drone Recoveries . | . . . . Exploration | -11 -10 -9 -9 ------------- Run | Yrd Mat Mat Min Turns Passed 3054 | 75 469 2193 317 Spaces Moved 1298 | 48 177 967 106 Core 74 | 23 . 51 . Treads 431 | 25 177 229 . Legs 1 | . . 1 . Wheels . | . . . . Hover . | . . . . Flight 792 | . . 686 106 Fastest Speed 32 | 50 160 32 114 Average Speed 179 | 122 160 182 209 Slowest Speed 320 | 160 160 320 280 Overloaded Moves . | . . . . Propulsion Burnouts . | . . . . Robots Hopped . | . . . . Potential Cave-ins . | . . . . Cave-ins Triggered . | . . . . Exploration Rate (%) 31 | 3 30 62 30 Regions Visited 3 Branch Regions 1 Pre-discovered Areas . | . . . . Known Exits Taken . | . . . . Unknown Exits Taken 3 | 1 1 1 . Scrap Searched 1 | . . . 1 Spaces Dug . | . . . . Terrain Destroyed 18 | . . 18 . Melee . | . . . . Projectile . | . . . . AOE 18 | . . 18 . Terrain Rammed . | . . . . Walls Destroyed . | . . . . Machines Disabled . | . . . . Actions | -11 -10 -9 -9 --------- Run | Yrd Mat Mat Min Total 1643 | 61 249 1174 159 Wait 52 | . 10 12 30 Move 1295 | 47 176 966 106 Hop . | . . . . Pick Up 25 | 6 5 14 . Fast Attach 14 | . . 14 . Attach 18 | 5 1 10 2 Detach 2 | . . 2 . Swap 3 | . . 3 . Drop 14 | 1 . 13 . Fire 220 | 2 57 140 21 Melee . | . . . . Ram . | . . . . Kick . | . . . . Crush . | . . . . Escape Stasis . | . . . . Rewire . | . . . . Trap . | . . . . Miscellaneous . | . . . . Route ------- -11/Scrapyard -10/Materials -9/Materials (discovered 3 exits: [*Mat x2] / [*Min]) -9/Mines (discovered 1 exit: [*Mat]) History --------- Turn | Location | Event 3 | -11/Scrapyard | Discovered new exit (range 15) 76 | -11/Scrapyard | Entered Materials 305 | -10/Materials | Build established: Mutant 507 | -10/Materials | Discovered new exit (range 8) 545 | -10/Materials | Entered another Materials area 545 | -9/Materials | Evolved 2 slots: Utility x1, Weapon x1 907 | -9/Materials | Build established: Gunner 971 | -9/Materials | Discovered new exit (range 7) 1855 | -9/Materials | Discovered new exit (range 8) 2244 | -9/Materials | Build established: Mutant 2314 | -9/Materials | Lost 3 parts (1n2w) 2491 | -9/Materials | Core integrity fell below 50% 2704 | -9/Materials | Discovered new exit (range 7) 2738 | -9/Materials | Entered Mines 2906 | -9/Mines | Destroyed 8 combat bots 3000 | -9/Mines | Discovered new exit (range 12) 3044 | -9/Mines | Core integrity fell below 20% 3055 | -9/Mines | Destroyed by Y-45 Defender with Heavy Assault Rifle Last Messages --------------- R-06 Scavenger collects Flight Unit. S-10 Pest destroyed. Flight Unit melted. S-10 Pest destroyed. Acquired 19 matter. S-10 Pest destroyed. Searching scrap... Found Hcp. Battery. Found Med. Storage Unit. Found 34 Matter. Found 53 Matter. Acquired 45 matter. Destroyed Mining Laser. T-07 Excavator destroyed. K-01 Serf collects debris. EXIT=FOUND Critical hit (Burn: +37). Flight Unit destroyed. Critical hit (Burn: +37). Hvy. Assault Rifle destroyed. Map ----- +----------------------------------------------------+ | ???????????????????????????????? | | ???????????????????????????????? | | ???????????????????????????????? | | ???????????????????????????????? | | ???????????????????????????????? | | ???????????????????????????????? | | ???????????????????????????????? | | ???????????????????????????????? | | ???????????????????????????????? | | ???????????????????????????????? | | ???????????????????????????????? | | ???????????????????????????????? | | ???????????????????????????????? | | ???????????????????????????????? | | ???????????????????????????????? | | ???????????????????????????????? | | ???????????????????????????????? | | ???????????????????????????????? | | ???????????????????????????????? | | ???????????????????????????????? | | ????????????????????###?#####??? | | ???????????????????##" ## ##?? | | ???????????????????#"" Y# #?? | | ???????????????????#[! / #?? | | ???????????????????#/[ Y ##? | | ???????????????????#"" #@ #? | | ???????????????????##"?## #? | | ???????????????????????# < #? | | ???????????????????????# #? | | ???????????????????????# #? | | ???????????????????????# ##? | | #??????????????????????# ##?? | | ##????????????????###??# ###??? | | #???????????????? #??# #????? | | =#######??????????# #??# #????? | | #??????????# #??# #????? | | #??????????# #?## #????? | | ### #??????????# ### #????? | | ##?# #?????###### ## #????? | | ##??# #?????# #????? | | ????# #?????# #????? | | ??### #??#### ###### """ #????? | | ### #?## #????# """ #???? | | ### ##???? """ #???? | | ##???? #???? | | ##???? ##### ##???? | | # ##????# ????####????? | | ## #### ##?????#?????????????? | | ?# ???####????????????????????? | | ? ???????????????????????????? | +----------------------------------------------------+ Best States ------------- Heat Dissipation 42 Energy Generation 14 Energy Capacity 280 Matter Stores 300 Matter Capacity 300 Sight Range 16 Terrain Scan Density 10 Evasion (%) 63 Recoil Reduction 2 Item Schematics ----------------- Cesium-ion Thruster | -9/Materials | Scanalyzed Robot Schematics ------------------ None Fabricated ------------ Nothing Repaired ---------- Nothing Alien Tech Used ----------------- None Achievements -------------- None Challenges ------------ None Game ------ Seed DerelictAlloyStabilizer Manual? 0 Play Time 00:17:16 Cumulative 71.1 hours Start 2025.07.30 @ 22:38:43 End 2025.07.30 @ 22:56:29 Sessions 1 Manual Loads 0 Difficulty Rogue Special Mode None Game No. 294 Rogue 294 Adventurer 0 Explorer 0 Win Type - Total 0 Types 0/0/0/0/0/0/0/0/0/0 Lore% 22 Gallery% 31 Achievement% 26 Wizard Run 0 Options --------- Layout 2 ASCII 0 Keyboard 0 Movement Mouse Keybinds 0 Fullscreen 2 Font 24/Smallcaps Map View 50x44 Zoom Use 0% Tactical HUD 0 Map Filters NONE Filters NONE Steam 1 RUN: 3cf5e26a-215d-4bc9-b96d-675a5fc5f240